Cogmind - Beta 10.2 @@@ ROGUE MODE // 2021.01.13 @ 18:08:22 Player: Luigi Panache Result: Destroyed by Y-64 Sentinel with Wave Gun Performance ------------- Evolutions (6) 3000 Regions Visited (24) 4800 Robots Destroyed (154) 770 Value Destroyed (7360) 7360 Prototype IDs (29) 580 Alien Tech Used (0) 0 Bonus (5105) 5105 TOTAL SCORE: 21615 Bonus ------- High Alert Combat Kills 487 Follower Combat Kills 1051 Entered Garrisons 1000 Used RIF Installer 2500 Aligned with FarCom 300 Friendly Fire -233 Cogmind --------- Core Integrity 0/1150 Matter 280/300 Energy 72/100 System Corruption 0% Temperature Cool (13) Movement Flying (34) Location -4/Extension Parts ------- > --- POWER (2) -------- (None) > --- PROPULSION (4) --- Improved VTOL Module Impulse Thruster > --- UTILITY (10) ----- (None) > --- WEAPON (3) ------- (None) > --- INVENTORY (4) ---- (None) Peak State ------------ > --- POWER ------------ Micro Fission Core Light Antimatter Reactor > --- PROPULSION ------- Heavy Treads Heavy Treads > --- UTILITY ---------- Improved Cooling System Advanced Coolant Injector High-capacity Storage Unit Advanced Armor Integrity Analyzer Quantum Capacitor Damper Plating > --- WEAPON ----------- Matter Neutralizer Matter Neutralizer Bore Cannon > --- INVENTORY -------- Antimatter Reactor Heavy Treads Heavy Treads Heavy Treads Improved VTOL Module Q-thruster Hardened Light Armor Plating Hardened Light Armor Plating Hardened Light Armor Plating [Rating: 113] Favorites ----------- Power Light Angular Momentum Engine Engine Light Angular Momentum Engine Power Core Micro Fission Core Reactor Antimatter Reactor Propulsion Advanced Treads Treads Advanced Treads Leg Aluminum Leg Flight Unit Improved VTOL Module Utility High-capacity Storage Unit Device Improved Cooling System Storage High-capacity Storage Unit Processor Advanced Armor Integrity Analyzer Hackware Relay Coupler [NC] Protection Damper Plating Weapon Improved EM Shotgun Energy Gun Improved EM Shotgun Energy Cannon Matter Neutralizer Ballistic Gun Flak Gun Ballistic Cannon Bore Cannon Launcher Rocket Launcher Impact Weapon Mace Slashing Weapon Great Axe Special Melee Weapon Datajack Build | -11 -10 -9 -9 -9 -8 -8 -8 -8 -8 -7 -7 -7 -7 -7 -7 -6 -6 -5 -5 -5 -4 -4 -4 -4 ------- Run | Scr Mat Mat Min Exi Min Mat Gar Mat Gar Fac Was Fac Gar Fac Gar Fac Gar Fac Upp Upp Fac Was Fac Ext Slots Evolved 12 | . . 2 . . . 2 . . . 2 . . . . . 2 . 2 . . 2 . . . Power 1 | . . . . . . . . . . . . . . . . . . 1 . . . . . . Propulsion 2 | . . 1 . . . . . . . 1 . . . . . . . . . . . . . . Utility 8 | . . 1 . . . 2 . . . 1 . . . . . 2 . . . . 2 . . . Weapon 1 | . . . . . . . . . . . . . . . . . . 1 . . . . . . Parts Attached 197 | 2 6 22 . 3 . 3 5 8 5 4 4 . 2 11 5 40 3 31 2 4 1 18 3 15 Power 19 | . 1 2 . . . 1 . . . . 2 . . 1 1 2 . 3 . . . 3 1 2 Engine 10 | . 1 2 . . . . . . . . 1 . . 1 1 2 . 2 . . . . . . Core 3 | . . . . . . 1 . . . . . . . . . . . 1 . . . 1 . . Reactor 6 | . . . . . . . . . . . 1 . . . . . . . . . . 2 1 2 Propulsion 47 | 2 2 10 . . . . . 4 . 1 . . . . 1 7 . 7 . 1 1 4 . 7 Treads 40 | 2 2 9 . . . . . 4 . 1 . . . . 1 7 . 6 . 1 . 3 . 4 Leg 1 | . . 1 . . . . . . . . . . . . . . . . . . . . . . Wheel . | . . . . . . . . . . . . . . . . . . . . . . . . . Hover . | . . . . . . . . . . . . . . . . . . . . . . . . . Flight 6 | . . . . . . . . . . . . . . . . . . 1 . . 1 1 . 3 Utility 71 | . 2 3 . 3 . 2 . 3 3 3 2 . 2 6 2 20 1 5 1 1 . 8 1 3 Device 17 | . . . . 1 . . . 1 1 2 . . 2 2 1 . . 1 1 . . 4 1 . Storage 8 | . 2 . . 2 . . . . . . . . . 1 . 2 . . . . . 1 . . Processor 1 | . . . . . . . . . . . . . . . . . . . . 1 . . . . Hackware 2 | . . . . . . . . . . . . . . . . 2 . . . . . . . . Protection 43 | . . 3 . . . 2 . 2 2 1 2 . . 3 1 16 1 4 . . . 3 . 3 Artifact . | . . . . . . . . . . . . . . . . . . . . . . . . . Weapon 60 | . 1 7 . . . . 5 1 2 . . . . 4 1 11 2 16 1 2 . 3 1 3 Energy Gun 19 | . . 6 . . . . 2 1 1 . . . . 1 . . . 5 . . . 2 . 1 Energy Cannon 9 | . . . . . . . . . . . . . . . . 2 . 4 . . . 1 1 1 Ballistic Gun 13 | . 1 . . . . . 1 . . . . . . 3 . 4 . 4 . . . . . . Ballistic Cannon 4 | . . . . . . . . . . . . . . . . . . 1 . 2 . . . 1 Launcher 7 | . . 1 . . . . 1 . 1 . . . . . 1 . 2 1 . . . . . . Special Weapon . | . . . . . . . . . . . . . . . . . . . . . . . . . Impact Weapon 1 | . . . . . . . 1 . . . . . . . . . . . . . . . . . Slashing Weapon 1 | . . . . . . . . . . . . . . . . . . . 1 . . . . . Piercing Weapon . | . . . . . . . . . . . . . . . . . . . . . . . . . Special Melee Weapon 6 | . . . . . . . . . . . . . . . . 5 . 1 . . . . . . Unidentified Prototypes 5 | . . 1 . . . . . . . . . . . . . 2 . 1 . . 1 . . . Parts Lost 75 | . 1 7 . . . . . . . 1 . . . 3 2 12 4 23 1 . 2 . 2 17 Power 8 | . . 1 . . . . . . . . . . . 1 1 1 . 3 . . . . . 1 Propulsion 24 | . . 2 . . . . . . . . . . . 1 1 4 1 8 . . 1 . . 6 Utility 20 | . . . . . . . . . . 1 . . . . . 5 1 5 1 . . . . 7 Weapon 23 | . 1 4 . . . . . . . . . . . 1 . 2 2 7 . . 1 . 2 3 Highest Loss Streak 16 | . 1 5 . . . . . . . 1 . . . 1 2 6 2 14 1 . 2 . 1 16 Average Slot Usage (%) 82 | . 94 91 100 100 100 100 98 89 90 86 85 84 84 84 74 90 92 79 11 26 19 52 64 61 Engine 4 | . 14 10 11 11 11 . . . . . 1 . . 3 7 5 6 3 . . . . . . Core 2 | . . . . . . 8 9 9 9 7 3 . . . . . . 3 . . . 4 5 4 Reactor 1 | . . . . . . . . . . . 2 7 7 3 . . . . . . . 3 5 4 Treads 22 | . 28 29 33 33 33 27 27 26 27 26 30 30 30 28 21 21 23 15 . 4 3 7 10 9 Device 3 | . . . . 3 11 9 7 . . 6 7 7 7 2 . . . 3 3 . . 11 15 14 Storage 19 | . 24 22 22 22 22 18 18 18 18 15 15 15 15 22 23 27 33 25 . . . 4 5 4 Hackware 2 | . . . . . . . . . . . . . . . . 7 13 4 . . . . . . Protection 8 | . . 5 11 7 . 18 18 17 17 14 8 7 7 6 6 12 5 4 . . . 5 10 5 Energy Gun 6 | . 1 11 22 22 22 18 7 17 16 15 15 15 15 6 . . . 4 . . . 3 . . Energy Cannon 1 | . . . . . . . . . . . . . . . . 3 1 2 . . . 1 5 7 Ballistic Gun 4 | . 25 8 . . . . 4 . . . . . . 8 10 6 . 2 . . . . . . Naked Turns 22 | . . . . . . . . . . . . . . . . . . 21 . . . . . 1 Heaviest Build 203 | 12 48 58 58 82 76 88 89 99 100 96 132 132 132 165 158 201 193 203 6 24 4 131 136 133 Greatest Support 140 | 40 40 63 63 63 63 63 63 67 66 88 88 88 88 88 114 130 118 113 6 70 6 140 140 140 Greatest Overweight (x) 6 | . 1 1 . 1 1 1 1 1 1 1 1 1 1 2 3 3 2 6 . . . 3 . . Average Overweight (x) . | . . . . . 1 1 1 1 1 1 . 1 1 1 1 1 1 1 . . . . . . Largest Inventory Capacity 44 | 6 16 16 16 20 20 20 20 20 20 20 20 20 20 28 28 44 44 44 4 4 4 12 12 12 Average Capacity 24 | 6 11 16 16 19 20 20 20 20 20 20 20 20 20 27 28 37 44 39 4 4 4 10 12 11 Most Carried 41 | 6 15 16 16 18 18 18 20 20 20 20 20 20 20 28 28 41 41 38 4 4 4 12 12 12 Average Carried 21 | 6 8 14 15 17 18 16 18 19 19 18 19 19 19 24 26 32 39 31 3 4 3 7 12 11 Final Capacity 44 | 6 16 16 16 20 20 20 20 20 20 20 20 20 20 28 28 44 44 4 4 4 4 12 12 4 Final Carried 41 | 6 15 16 16 18 18 18 20 20 20 19 20 20 20 28 25 41 37 3 4 4 4 12 12 . Class Distribution -------------------- 43% | Hauler-Mutant 15% | Mutant 14% | Bothacker-Mutant 13% | Hauler-Skirmisher 11% | Scavenger-Mutant Dominant Class ---------------- Mutant | -10/Materials Mutant | -9/Materials Mutant | -9/Mines Hauler-Mutant | -9/Exiles Hauler-Mutant | -8/Mines Hauler-Mutant | -8/Materials Hauler-Mutant | -8/Garrison Hauler-Mutant | -8/Materials Hauler-Mutant | -8/Garrison Hauler-Skirmisher | -7/Factory Hauler-Skirmisher | -7/Waste Hauler-Skirmisher | -7/Factory Hauler-Skirmisher | -7/Garrison Hauler-Mutant | -7/Factory Bothacker-Mutant | -7/Garrison Hauler-Mutant | -6/Factory Hauler-Mutant | -6/Garrison Hauler-Mutant | -5/Factory Mutant | -5/Upper Caves Mutant | -5/Upper Caves Mutant | -4/Factory Scavenger-Mutant | -4/Waste Scavenger-Mutant | -4/Factory Scavenger-Mutant | -4/Extension Resources | -11 -10 -9 -9 -9 -8 -8 -8 -8 -8 -7 -7 -7 -7 -7 -7 -6 -6 -5 -5 -5 -4 -4 -4 -4 ----------- Run | Scr Mat Mat Min Exi Min Mat Gar Mat Gar Fac Was Fac Gar Fac Gar Fac Gar Fac Upp Upp Fac Was Fac Ext Matter Collected 4063 | 220 208 202 15 . . . 152 . 270 32 30 10 20 377 322 717 183 571 122 . . 480 62 70 Remotely . | . . . . . . . . . . . . . . . . . . . . . . . . . Salvage Created 7878 | . 356 684 . . . 20 200 . 405 259 301 . 87 922 585 1048 730 1014 66 . . 615 499 87 Parts 325 | . 23 43 . . . 2 9 . 25 16 4 . 1 44 17 29 30 45 1 . . 5 27 4 Haulers Intercepted 6 | . 2 3 . . . . . . . . . . . . . . . 1 . . . . . . Recyclers Shooed 3 | . . . . . . . . . . . . . . . . 2 . 1 . . . . . . Parts Field Recycled . | . . . . . . . . . . . . . . . . . . . . . . . . . Retrieved Matter . | . . . . . . . . . . . . . . . . . . . . . . . . . Parts Self-Destructed . | . . . . . . . . . . . . . . . . . . . . . . . . . Prevented . | . . . . . . . . . . . . . . . . . . . . . . . . . Kills | -11 -10 -9 -9 -9 -8 -8 -8 -8 -8 -7 -7 -7 -7 -7 -7 -6 -6 -5 -5 -5 -4 -4 -4 -4 ------- Run | Scr Mat Mat Min Exi Min Mat Gar Mat Gar Fac Was Fac Gar Fac Gar Fac Gar Fac Upp Upp Fac Was Fac Ext Combat Hostiles Destroyed 123 | . 7 11 . . . . 4 . 8 5 . . 2 13 14 16 11 21 1 . . . 8 2 Melee 1 | . . . . . . . . . . . . . . . . . . . 1 . . . . . Guns 55 | . 7 8 . . . . 1 . 6 2 . . 1 11 5 8 . 6 . . . . . . Cannons 21 | . . . . . . . . . . . . . . . . 6 . 6 . . . . 7 2 AOE 37 | . . 3 . . . . 2 . 2 3 . . . . 9 2 8 7 . . . . 1 . Classes Destroyed 14 | . 5 1 . . . 1 . . . 1 . . 1 2 . 2 1 . . . . . . . Worker 6 | . . . . . . . . . . . . . . . . 1 . 5 . . . . . . Builder 10 | . 1 3 . . . . . . . 1 . . . 1 . . . 2 . . . . 1 1 Hauler 6 | . 2 3 . . . . . . . . . . . . . . . 1 . . . . . . Recycler 1 | . . . . . . . . . . . . . . . . 1 . . . . . . . . Operator 2 | . . . . . . 1 . . . . . . . . . . . . . . . . 1 . Watcher 5 | . 1 1 . . . . . . . . . . . 2 . . . 1 . . . . . . Swarmer 11 | . 2 . . . . . . . 4 . . . 1 . . . . 4 . . . . . . Grunt 71 | . 5 8 . . . . 3 . 2 4 . . . 5 11 11 8 9 1 . . . 3 1 Brawler 3 | . . . . . . . . . . . . . . 1 2 . . . . . . . . . Duelist 1 | . . . . . . . . . . . . . . . . . 1 . . . . . . . Sentry 18 | . . 3 . . . . 1 . 2 . . . . 5 . 1 . 2 . . . . 3 1 Hunter 8 | . . . . . . . . . . . . . 1 . 1 1 2 1 . . . . 2 . Programmer 11 | . . . . . . . . . . 1 . . . 2 . 3 . 5 . . . . . . Surgeon 1 | . . . . . . . . . . . . . . 1 . . . . . . . . . . Best Kill Streak 7 | . 3 5 . . . 1 1 . 2 3 . . 1 3 6 4 4 7 1 . . . 4 1 Combat Bots Only 6 | . 2 4 . . . . 1 . 2 3 . . 1 3 6 4 4 4 1 . . . 3 1 Max Kills in Single Turn 2 | . 1 2 . . . 1 1 . 2 2 . . 1 1 2 2 2 2 1 . . . 2 1 Gunslinging 1 | . . . . . . . . . 1 . . . . . . . . . . . . . . . Exploded 2 | . . 1 . . . . 1 . 1 2 . . . . 2 2 2 2 . . . . 1 . Melee 1 | . . . . . . . . . . . . . . . . . . . 1 . . . . . Uniques/NPCs Destroyed . | . . . . . . . . . . . . . . . . . . . . . . . . . Combat | -11 -10 -9 -9 -9 -8 -8 -8 -8 -8 -7 -7 -7 -7 -7 -7 -6 -6 -5 -5 -5 -4 -4 -4 -4 -------- Run | Scr Mat Mat Min Exi Min Mat Gar Mat Gar Fac Was Fac Gar Fac Gar Fac Gar Fac Upp Upp Fac Was Fac Ext Damage Taken 19560 | . 620 966 . . . . 250 63 518 508 . . 179 752 616 3333 1023 4647 74 936 405 . 933 3737 Core 2801 | . 94 80 . . . . 46 . 8 28 . . . 75 99 317 124 538 38 201 297 . 45 811 Absorbed by Shields 55 | . . . . . . . . . . . . . 9 . . . . . . . . . . 46 Core Remaining (%) 67 | 100 62 . . . 80 . . . 90 . . . . . 71 . 48 . . 22 . . . . Volleys Fired 475 | . 47 52 . . . 2 15 . 20 10 3 . 7 45 26 75 32 62 . 4 . 27 34 14 Largest 3 | . 2 2 . . . 2 2 . 2 2 2 . 2 2 2 2 1 3 . 2 . 1 1 2 Hottest 215 | . 60 90 . . . 90 90 . 90 90 90 . 90 90 56 210 36 215 . 130 . 120 120 210 Shots Fired 782 | . 80 87 . . . 4 23 . 37 20 6 . 14 85 40 114 32 156 . 7 . 27 34 16 Gun 557 | . 80 82 . . . 4 17 . 34 20 6 . 14 85 28 69 . 96 . . . 20 . 2 Cannon 157 | . . . . . . . . . . . . . . . . 45 . 50 . 7 . 7 34 14 Launcher 68 | . . 5 . . . . 6 . 3 . . . . . 12 . 32 10 . . . . . . Special . | . . . . . . . . . . . . . . . . . . . . . . . . . Kinetic 379 | . 74 32 . . . . 1 . . . . . . 59 28 69 . 109 . 7 . . . . Thermal 128 | . 6 . . . . . . . . . . . . . . 45 . . . . . 27 34 16 Explosive 37 | . . 5 . . . . 6 . 3 . . . . . 12 . 1 10 . . . . . . Electromagnetic 238 | . . 50 . . . 4 16 . 34 20 6 . 14 26 . . 31 37 . . . . . . Robot Hit Streak 26 | . 18 18 . . . 15 16 . 11 13 18 . 26 26 8 11 8 12 . 2 . 16 8 13 Robot Miss Streak 7 | . 2 2 . . . . 2 . 2 3 . . 2 5 7 5 3 4 . 2 . 1 4 1 Penetration Max 1 | . . . . . . . . . . . . . . . . . . 1 . . . . . . Secondary Targets 3 | . . . . . . . . . 2 . . . 1 . . . . . . . . . . . Max Gunslinging Chain 1 | . . . . . . . . . 1 . . . 1 . . . . . . . . . . . Capacitor 71 | . . . . . . . . . . . . . . . . . . . . . . 27 34 10 Shots Hit Robots 649 | . 60 74 . . . 3 17 . 32 18 6 . 11 77 31 108 16 121 1 13 4 20 24 13 Core Hits 435 | . 21 32 . . . 2 14 . 22 13 2 . 6 75 57 80 27 55 1 1 1 4 17 5 Critical Hits 12 | . . . . . . . . . 1 . . . . . . . . 8 . 1 . 1 . 1 Critical Kills 5 | . . . . . . . . . 1 . . . . . . . . 4 . . . . . . Critical Parts Destroyed 5 | . . . . . . . . . . . . . . . . . . 3 . 1 . . . 1 Melee Attacks 40 | . . . . . . . 1 . . . . . . . . 13 . 6 1 15 4 . . . Impact 1 | . . . . . . . 1 . . . . . . . . . . . . . . . . . Slashing 20 | . . . . . . . . . . . . . . . . . . . 1 15 4 . . . Piercing . | . . . . . . . . . . . . . . . . . . . . . . . . . Sneak Attacks 14 | . . . . . . . . . . . . . . . . 9 . 5 . . . . . . Combat Hostiles . | . . . . . . . . . . . . . . . . . . . . . . . . . Follow-up Attacks . | . . . . . . . . . . . . . . . . . . . . . . . . . Damage Inflicted 19026 | . 673 1486 . . 13 69 471 . 888 618 113 . 220 1497 1671 2582 1211 4262 46 509 133 722 1320 522 Guns 8182 | . 673 957 . . . 69 185 . 463 200 113 . 220 1421 350 1332 . 1734 . . . 432 . 33 Cannons 3857 | . . . . . . . . . . . . . . . . 995 . 965 . 162 . 290 1007 438 Explosions 6246 | . . 511 . . . . 286 . 425 378 . . . 52 1321 228 1211 1521 . . . . 313 . Melee 526 | . . . . . . . . . . . . . . . . . . . 46 347 133 . . . Ramming 215 | . . 18 . . 13 . . . . 40 . . . 24 . 27 . 42 . . . . . 51 Kinetic 5770 | . 639 274 . . . . . . . . . . . 1011 350 1332 . 2002 . 162 . . . . Thermal 4627 | . 34 92 . . . . 57 . 97 378 . . . 52 . 1223 . 181 . . . 722 1320 471 Explosive 3695 | . . 419 . . . . 229 . 328 . . . . . 1321 . 58 1340 . . . . . . Electromagnetic 4193 | . . 683 . . . 69 185 . 463 200 113 . 220 410 . . 1153 697 . . . . . . Impact . | . . . . . . . . . . . . . . . . . . . . . . . . . Slashing 526 | . . . . . . . . . . . . . . . . . . . 46 347 133 . . . Piercing . | . . . . . . . . . . . . . . . . . . . . . . . . . Highest Corruption 26 | . . . . . . . . . . 1 1 1 1 1 1 3 4 20 20 26 . . . . Average Corruption 3 | . . . . . . . . . . 1 1 1 1 1 1 2 3 5 20 23 . . . . Corruption Purged . | . . . . . . . . . . . . . . . . . . . . . . . . . Effects 82 | . . . . . . . . . . 1 2 . 1 7 2 18 7 23 6 15 . . . . Message Errors 18 | . . . . . . . . . . . 2 . 1 4 1 4 . 2 1 3 . . . . Matter Fused 13 | . . . . . . . . . . . . . . . . 5 1 4 2 1 . . . . Heat Flow Errors 10 | . . . . . . . . . . . . . . . . 1 3 4 1 1 . . . . Energy Discharges 9 | . . . . . . . . . . . . . . 1 . 4 2 2 . . . . . . Data Loss (minor) 6 | . . . . . . . . . . . . . . . . 2 . 3 . 1 . . . . Data Loss (major) 3 | . . . . . . . . . . . . . . . . . . 1 . 2 . . . . Misdirections 6 | . . . . . . . . . . . . . . . . . . 2 2 2 . . . . Targeting Errors 13 | . . . . . . . . . . 1 . . . . 1 1 1 5 . 4 . . . . Weapon Failures 4 | . . . . . . . . . . . . . . 2 . 1 . . . 1 . . . . Overload Shots 2 | . . . . . . . . . . . . . . . . 2 . . . . . . . . Overflow Damage 341 | . . 2 . . . . 1 . 65 50 . . . . . 64 12 45 . 49 . . 38 15 Projectiles 79 | . . . . . . . . . . . . . . . . 19 . 27 . . . . 23 10 Explosions 193 | . . 2 . . . . 1 . 65 37 . . . . . 43 12 18 . . . . 15 . Melee 69 | . . . . . . . . . . 13 . . . . . 2 . . . 49 . . . 5 Knockbacks 5 | . . . . . 1 . . . . . . . . 1 . . . 3 . . . . . . Impact 2 | . . . . . 1 . . . . . . . . 1 . . . . . . . . . . Kinetic 3 | . . . . . . . . . . . . . . . . . . 3 . . . . . . Secondary . | . . . . . . . . . . . . . . . . . . . . . . . . . Self-Inflicted Damage 1480 | . . 138 . . . . 24 . 113 284 . . . . 40 320 186 251 . . . . 124 . Shots 45 | . . 7 . . . . 1 . 3 5 . . . . 2 4 13 8 . . . . 2 . Rammed 21 | . . 4 . . 1 . . . . 2 . . . 1 . 1 . 7 . . . . . 5 Targets Rammed 22 | . . 4 . . 1 . . . . 2 . . . 2 . 1 . 7 . . . . . 5 Kicked . | . . . . . . . . . . . . . . . . . . . . . . . . . Crushed 1 | . . . . . . . . . . . . . . 1 . . . . . . . . . . Highest Temperature 583 | . 48 170 . . . 72 225 . 201 237 180 . 192 248 232 213 268 260 213 87 387 290 583 194 Average Temperature 84 | . 18 51 . . . 37 79 . 74 79 84 . 70 81 88 57 60 65 122 19 207 139 245 93 Received Heat Transfer 4005 | . 219 357 . . . . 126 18 135 63 . . 21 213 171 915 285 531 36 . 108 . 153 654 Effects 14 | . . . . . . . . . . . . . . 1 . . . . . . . . 13 . Shutdowns 4 | . . . . . . . . . . . . . . . . . . . . . . . 4 . Energy Bleed 3 | . . . . . . . . . . . . . . 1 . . . . . . . . 2 . Interference 5 | . . . . . . . . . . . . . . . . . . . . . . . 5 . Matter Decay 1 | . . . . . . . . . . . . . . . . . . . . . . . 1 . Damage (minor) 1 | . . . . . . . . . . . . . . . . . . . . . . . 1 . Siege Activations . | . . . . . . . . . . . . . . . . . . . . . . . . . Robots Corrupted 11 | . . . . . . . 1 . 1 . 1 . 1 2 . . 3 2 . . . . . . Combat Hostiles 10 | . . . . . . . 1 . . . 1 . 1 2 . . 3 2 . . . . . . Parts Fried 33 | . . 4 . . . 1 . . 2 1 3 . 1 7 . . 11 3 . . . . . . Impact Corruptions 3 | . . . . . . . . . . 1 . . . . . 1 . . . . . . . 1 Robots Melted . | . . . . . . . . . . . . . . . . . . . . . . . . . Combat Hostiles . | . . . . . . . . . . . . . . . . . . . . . . . . . Parts Melted 5 | . . . . . . . . . . . . . . . . 4 . . . . . . 1 . Heat Transferred 4755 | . 75 150 . . . . 50 . 100 200 . . . . . 1560 . 150 . . . 777 1175 518 Parts Sabotaged . | . . . . . . . . . . . . . . . . . . . . . . . . . Parts Stolen . | . . . . . . . . . . . . . . . . . . . . . . . . . Parts Stripped . | . . . . . . . . . . . . . . . . . . . . . . . . . Power Chain Reactions 11 | . . 2 . . . . 1 . 3 2 . . . 1 . . 1 1 . . . . . . Missiles Intercepted . | . . . . . . . . . . . . . . . . . . . . . . . . . Alert | -11 -10 -9 -9 -9 -8 -8 -8 -8 -8 -7 -7 -7 -7 -7 -7 -6 -6 -5 -5 -5 -4 -4 -4 -4 ------- Run | Scr Mat Mat Min Exi Min Mat Gar Mat Gar Fac Was Fac Gar Fac Gar Fac Gar Fac Upp Upp Fac Was Fac Ext Peak Influence 787 | . 251 297 67 . . 20 289 140 483 505 106 215 647 460 746 466 680 787 . . 334 113 362 384 Initial 391 | . . 50 67 . . . 15 140 19 253 106 . 150 339 322 391 315 357 . . 304 109 . 177 Average 225 | . 93 127 67 . . 15 148 93 283 310 102 115 458 347 559 193 470 331 . . 315 71 195 180 Maximum Alert Level 3 | . 1 1 . . . . 1 . 2 2 . 1 2 2 3 2 2 3 . . 1 . 1 1 Low Security (%) 52 | 100 88 92 100 . 100 100 71 100 25 . 100 65 21 . . 58 . 27 . . . 100 43 71 Level 1 33 | . 11 7 . . . . 28 . 44 93 . 34 10 86 31 26 41 49 . . 100 . 56 28 Level 2 12 | . . . . . . . . . 30 6 . . 67 13 27 14 58 21 . . . . . . Level 3 1 | . . . . . . . . . . . . . . . 41 . . 2 . . . . . . Level 4 . | . . . . . . . . . . . . . . . . . . . . . . . . . Level 5 . | . . . . . . . . . . . . . . . . . . . . . . . . . High Security . | . . . . . . . . . . . . . . . . . . . . . . . . . Max Security . | . . . . . . . . . . . . . . . . . . . . . . . . . Squads Dispatched 38 | . . 2 . . . 1 . . . 3 . 2 . 4 . 10 . 8 . . 1 . 4 3 Investigation 11 | . . 1 . . . . . . . 1 . 1 . . . 2 . 3 . . . . 1 2 Extermination 7 | . . . . . . . . . . 1 . . . 1 . 4 . 1 . . . . . . Reinforcement 15 | . . 1 . . . 1 . . . 1 . . . 2 . 4 . 4 . . 1 . . 1 Assault . | . . . . . . . . . . . . . . . . . . . . . . . . . Garrison 5 | . . . . . . . . . . . . 1 . 1 . . . . . . . . 3 . Intercept . | . . . . . . . . . . . . . . . . . . . . . . . . . Construction Impeded 5 | . . 1 . . . . . . . . . . . 1 . . . 3 . . . . . . Haulers Reinforced . | . . . . . . . . . . . . . . . . . . . . . . . . . Stealth | -11 -10 -9 -9 -9 -8 -8 -8 -8 -8 -7 -7 -7 -7 -7 -7 -6 -6 -5 -5 -5 -4 -4 -4 -4 --------- Run | Scr Mat Mat Min Exi Min Mat Gar Mat Gar Fac Was Fac Gar Fac Gar Fac Gar Fac Upp Upp Fac Was Fac Ext Distress Signals 16 | . 1 3 . . . . . . . . . . . 6 . . . 2 . . . . 1 3 Communications Jammed . | . . . . . . . . . . . . . . . . . . . . . . . . . Distress Signals . | . . . . . . . . . . . . . . . . . . . . . . . . . Times Spotted 267 | . 16 19 . . . 1 8 2 15 13 . 1 16 22 17 38 13 41 8 3 6 . 9 19 Peak Tracking Total 12 | . 3 5 . . . 1 4 3 5 4 . 1 12 4 9 5 9 7 5 2 5 . 3 11 Tactical Retreats 32 | . 4 3 . . . . 4 . 7 . . . . 1 3 1 3 3 1 1 . . 1 . Traps | -11 -10 -9 -9 -9 -8 -8 -8 -8 -8 -7 -7 -7 -7 -7 -7 -6 -6 -5 -5 -5 -4 -4 -4 -4 ------- Run | Scr Mat Mat Min Exi Min Mat Gar Mat Gar Fac Was Fac Gar Fac Gar Fac Gar Fac Upp Upp Fac Was Fac Ext Traps Triggered 28 | . . . . . . . 1 . 8 1 . . 1 1 2 5 4 2 . . 1 . . 2 Indirectly 4 | . . . . . . . . . . . . . . . . . 4 . . . . . . . Trap Hack Attempts . | . . . . . . . . . . . . . . . . . . . . . . . . . Triggered . | . . . . . . . . . . . . . . . . . . . . . . . . . Disarmed . | . . . . . . . . . . . . . . . . . . . . . . . . . Reprogrammed . | . . . . . . . . . . . . . . . . . . . . . . . . . Reused . | . . . . . . . . . . . . . . . . . . . . . . . . . Traps Extracted . | . . . . . . . . . . . . . . . . . . . . . . . . . Installed . | . . . . . . . . . . . . . . . . . . . . . . . . . Triggered 1 | . . 1 . . . . . . . . . . . . . . . . . . . . . . Machines | -11 -10 -9 -9 -9 -8 -8 -8 -8 -8 -7 -7 -7 -7 -7 -7 -6 -6 -5 -5 -5 -4 -4 -4 -4 ---------- Run | Scr Mat Mat Min Exi Min Mat Gar Mat Gar Fac Was Fac Gar Fac Gar Fac Gar Fac Upp Upp Fac Was Fac Ext Machines Disabled 37 | . . 1 . . . . 1 . 1 5 . . 1 . . 15 1 7 . 1 . . 4 . Max in Single Turn 6 | . . 1 . . . . 1 . 1 5 . . 1 . . 6 1 2 . 1 . . 4 . Garrison Relay 4 | . . . . . . . 1 . 1 . . . 1 . . . 1 . . . . . . . Machines Sabotaged . | . . . . . . . . . . . . . . . . . . . . . . . . . Garrisons Compromised . | . . . . . . . . . . . . . . . . . . . . . . . . . Overloaded Fab Kills . | . . . . . . . . . . . . . . . . . . . . . . . . . Fab Network Shutdowns . | . . . . . . . . . . . . . . . . . . . . . . . . . Hacking | -11 -10 -9 -9 -9 -8 -8 -8 -8 -8 -7 -7 -7 -7 -7 -7 -6 -6 -5 -5 -5 -4 -4 -4 -4 --------- Run | Scr Mat Mat Min Exi Min Mat Gar Mat Gar Fac Was Fac Gar Fac Gar Fac Gar Fac Upp Upp Fac Was Fac Ext Machines Accessed 38 | . 4 4 . 2 . 1 . 2 . 1 . 2 . 2 . 6 . 4 . 1 . . 2 7 Terminals 23 | . 4 4 . . . . . . . 1 . . . . . 3 . 3 . . . . 2 6 Fabricators 3 | . . . . . . . . . . . . 1 . . . 2 . . . . . . . . Repair Stations 2 | . . . . . . . . 1 . . . . . . . . . 1 . . . . . . Recycling Units 1 | . . . . . . . . . . . . . . . . . . . . . . . . 1 Scanalyzers 1 | . . . . . . . . . . . . . . 1 . . . . . . . . . . Garrison Access 5 | . . . . . . 1 . 1 . . . 1 . 1 . 1 . . . . . . . . Total Hacks 99 | . 25 8 . 2 . 1 . 6 . 2 . 4 . 5 . 18 . 9 . 1 . . 4 14 Successful 55 | . 14 4 . 2 . 1 . 5 . . . 2 . 5 . 11 . 3 . 1 . . 1 6 Failed 44 | . 11 4 . . . . . 1 . 2 . 2 . . . 7 . 6 . . . . 3 8 Catastrophic 12 | . . 2 . . . . . . . 1 . 1 . . . 2 . 2 . . . . 1 3 Database Lockouts . | . . . . . . . . . . . . . . . . . . . . . . . . . Manual 56 | . 21 6 . 1 . . . . . 2 . . . . . 12 . 4 . . . . 3 7 Terminals 67 | . 25 8 . . . . . . . 2 . . . . . 10 . 6 . . . . 4 12 Fabricators 10 | . . . . . . . . . . . . 3 . . . 7 . . . . . . . . Repair Stations 8 | . . . . . . . . 5 . . . . . . . . . 3 . . . . . . Recycling Units 2 | . . . . . . . . . . . . . . . . . . . . . . . . 2 Scanalyzers 4 | . . . . . . . . . . . . . . 4 . . . . . . . . . . Garrison Access 5 | . . . . . . 1 . 1 . . . 1 . 1 . 1 . . . . . . . . Terminal Hacks 19 | . 8 2 . 2 . . . . . . . . . . . 1 . 1 . 1 . . 1 3 Record 1 | . . . . 1 . . . . . . . . . . . . . . . . . . . . Part Schematic 1 | . 1 . . . . . . . . . . . . . . . . . . . . . . . Robot Analysis 2 | . 2 . . . . . . . . . . . . . . . . . . . . . . . Open Door 5 | . . . . . . . . . . . . . . . . . . . . 1 . . 1 3 Branch Access Points 1 | . . . . . . . . . . . . . . . . 1 . . . . . . . . Terminal Index 3 | . 1 1 . . . . . . . . . . . . . . . 1 . . . . . . Alert Level 1 | . 1 . . . . . . . . . . . . . . . . . . . . . . . Zone Layout 4 | . 3 1 . . . . . . . . . . . . . . . . . . . . . . EX-Prototype ID Bank 1 | . . . . 1 . . . . . . . . . . . . . . . . . . . . Fabricator Hacks 5 | . . . . . . . . . . . . 1 . . . 4 . . . . . . . . Load Schematic 3 | . . . . . . . . . . . . 1 . . . 2 . . . . . . . . Build 2 | . . . . . . . . . . . . . . . . 2 . . . . . . . . Repair Station Hacks 6 | . . . . . . . . 4 . . . . . . . . . 2 . . . . . . Scan Component 3 | . . . . . . . . 2 . . . . . . . . . 1 . . . . . . Repair 3 | . . . . . . . . 2 . . . . . . . . . 1 . . . . . . Recycling Unit Hacks 1 | . . . . . . . . . . . . . . . . . . . . . . . . 1 Retrieve Components 1 | . . . . . . . . . . . . . . . . . . . . . . . . 1 Scanalyzer 4 | . . . . . . . . . . . . . . 4 . . . . . . . . . . Insert Component 2 | . . . . . . . . . . . . . . 2 . . . . . . . . . . Analyze 2 | . . . . . . . . . . . . . . 2 . . . . . . . . . . Garrison Access Hacks 5 | . . . . . . 1 . 1 . . . 1 . 1 . 1 . . . . . . . . Unlock Access 5 | . . . . . . 1 . 1 . . . 1 . 1 . 1 . . . . . . . . Unauthorized Hacks 15 | . 6 2 . . . . . . . . . . . . . 5 . . . . . . . 2 Terminals 12 | . 6 2 . . . . . . . . . . . . . 3 . . . . . . . 1 Track 2 | . 2 . . . . . . . . . . . . . . . . . . . . . . . Botnet 9 | . 3 2 . . . . . . . . . . . . . 3 . . . . . . . 1 Operators 1 | . 1 . . . . . . . . . . . . . . . . . . . . . . . Fabricators 2 | . . . . . . . . . . . . . . . . 2 . . . . . . . . Prioritize 2 | . . . . . . . . . . . . . . . . 2 . . . . . . . . Repair Stations . | . . . . . . . . . . . . . . . . . . . . . . . . . Recycling Units 1 | . . . . . . . . . . . . . . . . . . . . . . . . 1 Mask 1 | . . . . . . . . . . . . . . . . . . . . . . . . 1 Scanalyzers . | . . . . . . . . . . . . . . . . . . . . . . . . . Garrison Access . | . . . . . . . . . . . . . . . . . . . . . . . . . Data Cores Recovered . | . . . . . . . . . . . . . . . . . . . . . . . . . Used . | . . . . . . . . . . . . . . . . . . . . . . . . . Hacking Detections 31 | . 4 4 . . . 1 . 2 . 1 . 1 . 1 . 5 . 4 . . . . 1 7 Full Trace Events 11 | . 1 1 . . . . . . . 1 . 1 . . . 1 . 3 . . . . 1 2 Feedback Events 1 | . . . . . . . . . . . . . . . . . . 1 . . . . . . Corruption 1 | . . . . . . . . . . . . . . . . . . 1 . . . . . . Feedback Blocked . | . . . . . . . . . . . . . . . . . . . . . . . . . Robot Schematics Acquired . | . . . . . . . . . . . . . . . . . . . . . . . . . Robots Built . | . . . . . . . . . . . . . . . . . . . . . . . . . Matter . | . . . . . . . . . . . . . . . . . . . . . . . . . Time . | . . . . . . . . . . . . . . . . . . . . . . . . . Total Robot Build Rating . | . . . . . . . . . . . . . . . . . . . . . . . . . Part Schematics Acquired 3 | . 1 . . . . . . . . . . . . 2 . . . . . . . . . . Parts Built 2 | . . . . . . . . . . . . . . . . 2 . . . . . . . . Matter 288 | . . . . . . . . . . . . . . . . 288 . . . . . . . . Time 150 | . . . . . . . . . . . . . . . . 150 . . . . . . . . Total Part Build Rating 3 | . . . . . . . . . . . . . . . . 3 . . . . . . . . Parts Repaired 2 | . . . . . . . . 2 . . . . . . . . . . . . . . . . Time 86 | . . . . . . . . 58 . . . . . . . . . 28 . . . . . . Parts Recycled . | . . . . . . . . . . . . . . . . . . . . . . . . . Recycled Matter . | . . . . . . . . . . . . . . . . . . . . . . . . . Retrieved Matter . | . . . . . . . . . . . . . . . . . . . . . . . . . Retrieved Components . | . . . . . . . . . . . . . . . . . . . . . . . . . Parts Scanalyzed 2 | . . . . . . . . . . . . . . 2 . . . . . . . . . . Part Schematics Acquired 2 | . . . . . . . . . . . . . . 2 . . . . . . . . . . Parts Damaged . | . . . . . . . . . . . . . . . . . . . . . . . . . Bothacking | -11 -10 -9 -9 -9 -8 -8 -8 -8 -8 -7 -7 -7 -7 -7 -7 -6 -6 -5 -5 -5 -4 -4 -4 -4 ------------ Run | Scr Mat Mat Min Exi Min Mat Gar Mat Gar Fac Was Fac Gar Fac Gar Fac Gar Fac Upp Upp Fac Was Fac Ext Used RIF Installer 5 | . . . . . . . 1 . 1 . . . 1 . 1 . 1 . . . . . . . Hotswap 1 | . . . . . . . . . . . . . 1 . . . . . . . . . . . Watcher Feeds 1 | . . . . . . . . . . . . . . . 1 . . . . . . . . . Alert ID Control 1 | . . . . . . . . . 1 . . . . . . . . . . . . . . . Program Shield 1 | . . . . . . . . . . . . . . . . . 1 . . . . . . . Robots Hacked 13 | . . . . . . . . . . . . . . . . 9 . 4 . . . . . . Non-combat 12 | . . . . . . . . . . . . . . . . 8 . 4 . . . . . . Combat 1 | . . . . . . . . . . . . . . . . 1 . . . . . . . . Robot Hacks Applied 16 | . . . . . . . . . . . . . . . . 11 . 5 . . . . . . parse_system 2 | . . . . . . . . . . . . . . . . 2 . . . . . . . . start_evac 3 | . . . . . . . . . . . . . . . . . . 3 . . . . . . find_chute 1 | . . . . . . . . . . . . . . . . 1 . . . . . . . . ignore_repairs 1 | . . . . . . . . . . . . . . . . 1 . . . . . . . . purge_threat 3 | . . . . . . . . . . . . . . . . 2 . 1 . . . . . . map_route 2 | . . . . . . . . . . . . . . . . 2 . . . . . . . . formatsys_low 4 | . . . . . . . . . . . . . . . . 3 . 1 . . . . . . Relay Couplers Released 18 | . . . . . . . 3 . 5 . . . 4 3 . . 3 . . . . . . . Machine Destruction 15 | . . . . . . . 3 . 5 . . . 4 . . . 3 . . . . . . . Programmers 3 | . . . . . . . . . . . . . . 3 . . . . . . . . . . Attached 1 | . . . . . . . . . . . . . . . . 1 . . . . . . . . Robots Rewired 12 | . . . . . . . . . 1 . . . . . . . . . . . . . . 11 Allies Hacked . | . . . . . . . . . . . . . . . . . . . . . . . . . Hacks Repelled . | . . . . . . . . . . . . . . . . . . . . . . . . . Allies | -11 -10 -9 -9 -9 -8 -8 -8 -8 -8 -7 -7 -7 -7 -7 -7 -6 -6 -5 -5 -5 -4 -4 -4 -4 -------- Run | Scr Mat Mat Min Exi Min Mat Gar Mat Gar Fac Was Fac Gar Fac Gar Fac Gar Fac Upp Upp Fac Was Fac Ext Total Allies 40 | . . . . . . . . . 1 . 20 . . . . 3 . 1 . 1 . . . 14 Largest Group 20 | . . . . . . . . . 1 . 20 20 20 3 . 1 . 1 . 1 . . . 6 Highest-Rated Group 583 | . . . . . . . . . 13 . 583 583 583 98 . 26 . 26 . 180 . . . 240 Highest-Rated Ally 180 | . . . . . . . . . 13 . 33 33 33 33 . 26 . 26 . 180 . . . 49 Total Orders 15 | . . . . 2 2 . 2 1 2 1 . . 2 1 2 . . . . . . . . . EXPLORE 11 | . . . . 1 1 . 1 1 2 1 . . 1 1 2 . . . . . . . . . RETURN 4 | . . . . 1 1 . 1 . . . . . 1 . . . . . . . . . . . Ally Attacks 186 | . . . . . . . . . 5 . . 27 94 . . . . . . . . . . 60 Total Damage 3632 | . . . . . . . . . 100 . . 464 1467 . . . . . . . . . . 1601 Kills 34 | . . . . . . . . . 2 . . 4 19 . . . . . . . . . . 9 Allies Corrupted . | . . . . . . . . . . . . . . . . . . . . . . . . . Allies Melted . | . . . . . . . . . . . . . . . . . . . . . . . . . Intel | -11 -10 -9 -9 -9 -8 -8 -8 -8 -8 -7 -7 -7 -7 -7 -7 -6 -6 -5 -5 -5 -4 -4 -4 -4 ------- Run | Scr Mat Mat Min Exi Min Mat Gar Mat Gar Fac Was Fac Gar Fac Gar Fac Gar Fac Upp Upp Fac Was Fac Ext Robot Analysis Total 2 | . 2 . . . . . . . . . . . . . . . . . . . . . . . Derelict Logs Recovered 3 | . . . . . . . . . . . . . . . . . . . 2 1 . . . . Drone Launches 11 | . . . . 1 1 . 1 1 2 1 . . 1 1 2 . . . . . . . . . Drone Recoveries 10 | . . . . 1 1 . 1 1 2 1 . . 1 1 1 . . . . . . . . . Exploration | -11 -10 -9 -9 -9 -8 -8 -8 -8 -8 -7 -7 -7 -7 -7 -7 -6 -6 -5 -5 -5 -4 -4 -4 -4 ------------- Run | Scr Mat Mat Min Exi Min Mat Gar Mat Gar Fac Was Fac Gar Fac Gar Fac Gar Fac Upp Upp Fac Was Fac Ext Turns Passed 13832 | 12 737 605 24 668 275 292 502 605 593 442 414 107 337 1167 521 2620 418 1147 94 160 141 627 385 939 Spaces Moved 6836 | 7 329 249 15 367 144 71 216 113 274 215 205 41 154 492 229 1167 188 573 249 157 186 479 205 511 Core 39 | . . . . . . . . . . . . . . . . . . 38 . . . . . 1 Treads 5779 | 4 329 249 15 367 144 71 216 113 274 215 205 41 154 492 229 1167 188 375 . 13 . 274 205 439 Legs 3 | 3 . . . . . . . . . . . . . . . . . . . . . . . . Wheels . | . . . . . . . . . . . . . . . . . . . . . . . . . Hover . | . . . . . . . . . . . . . . . . . . . . . . . . . Flight 1015 | . . . . . . . . . . . . . . . . . . 160 249 144 186 205 . 71 Fastest Speed 34 | 120 160 160 160 160 180 180 180 165 165 165 145 165 165 165 170 170 180 35 35 35 35 34 160 34 Average Speed 153 | 142 174 163 160 175 180 180 180 175 165 165 164 165 165 168 178 179 186 147 35 63 64 110 160 142 Slowest Speed 280 | 160 180 180 160 180 180 180 180 180 165 165 165 165 165 185 205 220 200 280 35 160 75 259 160 160 Overloaded Moves . | . . . . . . . . . . . . . . . . . . . . . . . . . Propulsion Burnouts . | . . . . . . . . . . . . . . . . . . . . . . . . . Robots Hopped 18 | . . . . . . . . . . . . . . . . . . 7 1 1 4 4 . 1 Cave-ins Triggered . | . . . . . . . . . . . . . . . . . . . . . . . . . Exploration Rate (%) 40 | 2 66 24 5 91 97 9 63 23 44 15 80 1 77 21 68 30 44 19 46 19 6 97 7 54 Regions Visited 24 Branch Regions 6 Pre-discovered Areas 3 | . . . . 1 . . . . . . . . . . . . . . 1 1 . . . . Known Exits Taken 6 | . . . . . . 1 . 1 . . . 1 . 1 . 1 . . 1 . . . . . Unknown Exits Taken 9 | 1 1 1 1 1 1 . . . . . . . . . . . . 1 . 1 . . 1 . Scrap Searched 4 | . . . 1 . . . . . . . . . . . . . . . 2 1 . . . . Spaces Dug 34 | . . . . . . . . . . . . . . . . 34 . . . . . . . . Terrain Destroyed 505 | . . 30 . . . . 35 . 34 31 . . . 4 64 139 10 111 . 2 . 5 38 2 Melee . | . . . . . . . . . . . . . . . . . . . . . . . . . Projectile 33 | . . . . . . . . . . . . . . . . 11 . 7 . 2 . 5 6 2 AOE 472 | . . 30 . . . . 35 . 34 31 . . . 4 64 128 10 104 . . . . 32 . Terrain Rammed . | . . . . . . . . . . . . . . . . . . . . . . . . . Walls Destroyed . | . . . . . . . . . . . . . . . . . . . . . . . . . Machines Disabled . | . . . . . . . . . . . . . . . . . . . . . . . . . Actions | -11 -10 -9 -9 -9 -8 -8 -8 -8 -8 -7 -7 -7 -7 -7 -7 -6 -6 -5 -5 -5 -4 -4 -4 -4 --------- Run | Scr Mat Mat Min Exi Min Mat Gar Mat Gar Fac Was Fac Gar Fac Gar Fac Gar Fac Upp Upp Fac Was Fac Ext Total 9384 | 8 419 360 16 391 159 231 304 524 381 282 282 82 226 741 301 1560 225 720 251 180 197 573 262 709 Wait 1517 | . 26 21 . 17 15 152 64 388 52 48 49 37 56 175 33 217 1 45 . . 5 37 19 60 Move 6785 | 6 328 248 14 366 143 71 215 113 273 215 204 41 153 492 228 1167 187 558 246 154 178 472 204 509 Hop 16 | . . . . . . . . . . . . . . . . . . 7 1 1 4 2 . 1 Pick Up 95 | . 9 6 1 2 . 2 2 4 3 3 5 2 3 9 . 31 . 2 1 . 2 8 . . Fast Attach 56 | . 1 2 . 1 . 1 . 3 . . 3 . . 2 2 7 . 6 2 4 1 13 2 6 Attach 73 | . 1 9 . . . 2 . 1 1 3 1 . . 6 2 17 2 15 . . . 4 . 9 Detach 17 | . . . . . . . 1 1 . . 1 . . 5 . 5 . 1 . . . 3 . . Swap 68 | 2 4 11 . 2 . . 5 4 4 1 . . 2 3 1 16 1 10 . . . 1 1 . Drop 75 | . 3 7 1 3 . 1 1 10 4 . 11 2 3 2 2 9 2 1 . 2 3 6 2 . Fire 475 | . 47 52 . . . 2 15 . 20 10 3 . 7 45 26 75 32 62 . 4 . 27 34 14 Melee 40 | . . . . . . . 1 . . . . . . . . 13 . 6 1 15 4 . . . Ram 2 | . . . . . . . . . . . . . . . . . . 2 . . . . . . Kick . | . . . . . . . . . . . . . . . . . . . . . . . . . Crush 20 | . . 4 . . 1 . . . . 2 . . . 2 . 1 . 5 . . . . . 5 Escape Stasis 29 | . . . . . . . . . 14 . . . 2 . 4 2 . . . . . . . 7 Rewire 116 | . . . . . . . . . 10 . 5 . . . 3 . . . . . . . . 98 Trap . | . . . . . . . . . . . . . . . . . . . . . . . . . Miscellaneous . | . . . . . . . . . . . . . . . . . . . . . . . . . Route ------- -11/Scrapyard -10/Materials (discovered 3 exits: *Mat / [*Min x2]) -9/Materials -9/Mines -9/Exiles (discovered 2 exits: [*Min x2]) -8/Mines (discovered 2 exits: *Mat x2) -8/Materials -8/Garrison (discovered 2 exits: *Mat x2) -8/Materials -8/Garrison -7/Factory -7/Waste -7/Factory -7/Garrison (discovered 3 exits: *Fac x3) -7/Factory -7/Garrison (discovered 3 exits: *Fac x3) -6/Factory (discovered 3 exits: Low x2 / Gar) -6/Garrison -5/Factory -5/Upper Caves -5/Upper Caves (discovered 2 exits: [*Fac x2]) -4/Factory -4/Waste -4/Factory -4/Extension History --------- Turn | Location | Event 1 | -11/Scrapyard | Discovered new exit (range 2) 13 | -11/Scrapyard | Entered Materials 50 | -10/Materials | Discovered new exit (range 19) 307 | -10/Materials | Build established: Mutant 492 | -10/Materials | Discovered new exit (range 3) 642 | -10/Materials | Discovered new exit (range 10) 750 | -10/Materials | Entered another Materials area 750 | -9/Materials | Evolved 2 slots: Propulsion x1, Utility x1 1014 | -9/Materials | Lost 5 parts (1p2n2w) 1325 | -9/Materials | Discovered new exit (range 14) 1355 | -9/Materials | Entered Mines 1373 | -9/Mines | Deemed a non-threat by the Exiles lab entrance 1373 | -9/Mines | Discovered new exit (range 5) 1379 | -9/Mines | Entered Exiles 1423 | -9/Exiles | Met 8R-AWN 1442 | -9/Exiles | Met EX-HEX 1540 | -9/Exiles | Met EX-DEC 1572 | -9/Exiles | Learned location of Zion (-6) 1675 | -9/Exiles | Discovered new exit (range 10) 1772 | -9/Exiles | Met EX-BIN 1793 | -9/Exiles | Aligned with FarCom system 1795 | -9/Exiles | Given EX-Vault access code 1811 | -9/Exiles | Build established: Hauler-Mutant 1837 | -9/Exiles | Opened EX-Vault 1852 | -9/Exiles | Found Supersonic Drone Bay 1863 | -9/Exiles | Discovered new exit (range 69) 1909 | -9/Exiles | Warned to stay clear of 0b10 Research branches 2047 | -9/Exiles | Left Exiles lab with Supersonic Drone Bay 2047 | -9/Exiles | Entered Mines 2237 | -8/Mines | Discovered new exit (range 32) 2240 | -8/Mines | Discovered new exit (range 30) 2322 | -8/Mines | Entered Materials 2322 | -8/Materials | Evolved 2 slots: Utility x2 2614 | -8/Materials | Identified exit to Garrison 2614 | -8/Materials | Entered Garrison 2619 | -8/Garrison | Discovered new exit (range 46) 2620 | -8/Garrison | Triggered checkpoint 2622 | -8/Garrison | Discovered new exit (range 79) 2709 | -8/Garrison | Triggered checkpoint 2920 | -8/Garrison | Installed Relay Interface Framework 3056 | -8/Garrison | Garrison Relay disabled 3116 | -8/Garrison | Entered Materials 3561 | -8/Materials | Repaired Med. Armor Plating 3588 | -8/Materials | Repaired Lgt. Treads 3721 | -8/Materials | Identified exit to Garrison 3721 | -8/Materials | Entered Garrison 3730 | -8/Garrison | Expanded RIF knowledge: Alert ID Control 3762 | -8/Garrison | Triggered checkpoint 3997 | -8/Garrison | Garrison Relay disabled 4240 | -8/Garrison | Triggered checkpoint 4296 | -8/Garrison | Discovered new exit (range 12) 4314 | -8/Garrison | Entered Factory 4314 | -7/Factory | Evolved 2 slots: Propulsion x1, Utility x1 4641 | -7/Factory | Build established: Hauler-Skirmisher 4756 | -7/Factory | Sucked down chute 4756 | -7/Factory | Entered Waste 4757 | -7/Waste | Joined by Warlord forces that had cleared the area 4838 | -7/Waste | Found Damper Plating 4842 | -7/Waste | Found Damper Plating 5097 | -7/Waste | Found Damper Plating 5109 | -7/Waste | Discovered new exit (range 11) 5170 | -7/Waste | Entered Factory 5170 | -7/Factory | Accompanied by 20 allies 5206 | -7/Factory | Garrison activated, responded to threat 5267 | -7/Factory | Identified exit to Garrison 5277 | -7/Factory | Entered Garrison 5277 | -7/Garrison | Accompanied by 20 allies 5283 | -7/Garrison | Discovered new exit (range 68) 5286 | -7/Garrison | Discovered new exit (range 75) 5288 | -7/Garrison | Triggered checkpoint 5288 | -7/Garrison | Discovered new exit (range 47) 5346 | -7/Garrison | Triggered checkpoint 5382 | -7/Garrison | Triggered checkpoint 5382 | -7/Garrison | Triggered checkpoint 5497 | -7/Garrison | Expanded RIF knowledge: Hotswap 5526 | -7/Garrison | Triggered checkpoint 5568 | -7/Garrison | Garrison Relay disabled 5614 | -7/Garrison | Entered Factory 5614 | -7/Factory | Accompanied by 3 allies 6456 | -7/Factory | Build established: Hauler-Mutant 6778 | -7/Factory | Garrison activated, responded to threat 6781 | -7/Factory | Identified exit to Garrison 6781 | -7/Factory | Entered Garrison 6815 | -7/Garrison | Discovered new exit (range 67) 6817 | -7/Garrison | Discovered new exit (range 41) 6825 | -7/Garrison | Discovered new exit (range 54) 6851 | -7/Garrison | Build established: Bothacker-Mutant 7098 | -7/Garrison | Triggered checkpoint 7296 | -7/Garrison | Expanded RIF knowledge: Patrol Navigation 7302 | -7/Garrison | Entered Factory 7302 | -6/Factory | Evolved 2 slots: Utility x2 7493 | -6/Factory | Fabricated Imp. EM Shotgun (x1) 7783 | -6/Factory | Identified exit to Lower Caves 8825 | -6/Factory | Build established: Hauler-Mutant 9009 | -6/Factory | Fabricated Hcp. Storage Unit (x1) 9582 | -6/Factory | Lost 6 parts (1p2n2u1w) 9922 | -6/Factory | Identified exit to Garrison 9922 | -6/Factory | Entered Garrison 10032 | -6/Garrison | Triggered checkpoint 10095 | -6/Garrison | Garrison Relay disabled 10164 | -6/Garrison | Triggered checkpoint 10229 | -6/Garrison | Core integrity fell below 50% 10304 | -6/Garrison | Discovered new exit (range 9) 10332 | -6/Garrison | Expanded RIF knowledge: Program Shield 10340 | -6/Garrison | Entered Factory 10340 | -5/Factory | Evolved 2 slots: Power x1, Weapon x1 10736 | -5/Factory | Lost 3 parts (1p2n) 11006 | -5/Factory | Lost 3 parts (1p2n) 11243 | -5/Factory | System corruption reached 10% 11287 | -5/Factory | Lost 14 parts (1p4n4u5w) 11406 | -5/Factory | Released all parts (7) 11477 | -5/Factory | Discovered new exit (range 12) 11485 | -5/Factory | Core integrity fell below 50% 11487 | -5/Factory | Entered Upper Caves 11489 | -5/Upper Caves | Identified exit to Upper Caves 11546 | -5/Upper Caves | Encountered a Warlord checkpoint 11581 | -5/Upper Caves | Entered another Upper Caves area 11596 | -5/Upper Caves | Discovered new exit (range 11) 11719 | -5/Upper Caves | Build established: Mutant 11730 | -5/Upper Caves | 7V-RTL showed up to help 11732 | -5/Upper Caves | 7V-RTL revealed a hidden path 11741 | -5/Upper Caves | Entered Factory 11741 | -4/Factory | Evolved 2 slots: Utility x2 11793 | -4/Factory | Found Quantum Capacitor 11882 | -4/Factory | Sucked down chute 11882 | -4/Factory | Entered Waste 11882 | -4/Waste | The area was eerily silent 11949 | -4/Waste | Discovered new exit (range 11) 11977 | -4/Waste | Found Damper Plating 12242 | -4/Waste | Build established: Scavenger-Mutant 12398 | -4/Waste | Found Damper Plating 12509 | -4/Waste | Entered Factory 12617 | -4/Factory | Garrison activated, responded to threat 12887 | -4/Factory | Discovered new exit (range 6) 12894 | -4/Factory | Entered Extension 12958 | -4/Extension | Rescued a captive Derelict 13179 | -4/Extension | Rescued a captive Derelict 13332 | -4/Extension | Rescued a captive Derelict 13708 | -4/Extension | Spotted B-86 Titan 13722 | -4/Extension | Spotted B-86 Titan 13776 | -4/Extension | Core integrity fell below 50% 13797 | -4/Extension | Released all parts (7) 13802 | -4/Extension | Core integrity fell below 20% 13830 | -4/Extension | Lost 16 parts (1p6n6u3w) 13833 | -4/Extension | Destroyed by Y-64 Sentinel with Wave Gun Last Messages --------------- 13822_ Penetrated by Slug. 13822_ Field strength at 76. 13822_ O-24 Administrator uses terminal to summon reinforcements. 13822_ ALERT: Hostiles spotted, dispatching reinforcements to Terminal E009. 13822_ O-24 Administrator locks terminal. 13823_ Field strength at 70. 13824_ Field strength at 64. 13825_ Penetrated by Slug. 13825_ Field strength at 46. 13826_ Field strength at 29. 13827_ Field strength at 23. 13828_ Slug penetrates Repair Station. 13828_ Field strength at 11. 13829_ Stasis field depleted. 13830_ Acquired Impulse Thruster. 13830_ Slug penetrates Door. 13832_ Connecting with Terminal... 13832_ ALERT: Suspicious activity at Terminal E008. Dispatching Investigation squad. Map ----- +----------------------------------------------------+ | | | | | | | | | | | | | | | | | | | | | | | ?????????????????????????????????????????????????? | | ?????????????????????????????????????????????????? | | ???????????????????####??????????????????????????? | | ???????????????????#T"#??????????????????????????? | | ????################ "#############??????????????? | | ????# + ?????????????? | | ????# # ?????????????? | | ????# + ????????????? | | ????# w # w ????????????? | | ###?# g # Y ????????????? | | #?# # ###;###########+??????????????? | | ] #?##+##### # ! #???????????????????? | | #??# YY g + """ ] ###?????????????????? | | ##??# ##### # "R ""#?????????????????? | | ##### #???# # """ @===""#?????????????????? | | #???# ; "" ==oT"#?????????????????? | | #######???######### == ""#?????????????????? | | #?????????????????#! ! ###?????????????????? | | #?????????????????# Y#???????????????????? | | #?????????????????###""T""# #???????????????????? | | #???????????????????#"""""###???????????????????? | | #???????????????????#######?????????????????????? | | /###?????????????????????????????????????????????? | | #?????????????????????????????????????????????? | | % #####?????????????????????????????????????????? | | = " #?????????????????????????????????????????? | | %!" #?????????????????????????????????????????? | | =%!# ###?????????????????????????????????????????? | | !!*###???????????????????????????????????????????? | | ####?????????????????????????????????????????????? | | ?????????????????????????????????????????????????? | | ?????????????????????????????????????????????????? | | ?????????????????????????????????????????????????? | | ?????????????????????????????????????????????????? | | ?????????????????????????????????????????????????? | | ?????????????????????????????????????????????????? | | ?????????????????????????????????????????????????? | | ????????????????????????????????????????????????? | | ???????????????????????????????????????????????? | +----------------------------------------------------+ Best States ------------- Heat Dissipation 97 Coolant Potential 100 Energy Generation 34 Energy Capacity 395 Matter Stores 300 Matter Capacity 300 Sight Range 16 Terrain Scan Range 20 Terrain Scan Density 10 Armor Coverage 1350 Resistance: EM 90 Evasion (%) 63 Armor Integrity Analysis 66 Recoil Reduction 4 Defensive Hacking 12 Relay Coupler Types 31 Relay Coupler Value 1 Item Schematics ----------------- Hcp. Storage Unit | -10/Materials | Hacked Imp. EM Shotgun | -7/Factory | Scanalyzed Imp. VTOL Module | -7/Factory | Scanalyzed Robot Schematics ------------------ None Fabricated ------------ Imp. EM Shotgun | x1 | -6/Factory Hcp. Storage Unit | x1 | -6/Factory Alien Tech Used ----------------- None Achievements -------------- None Challenges ------------ None Game ------ Seed BlastNeutralizingImmobilizer Manual? 0 Play Time 01:42:48 Cumulative 239.1 hours Start 2021.01.13 @ 16:26:26 End 2021.01.13 @ 18:08:22 Sessions 1 Manual Loads 0 Difficulty Rogue Special Mode None Game No. 219 Rogue 90 Adventurer 63 Explorer 66 Win Type - Total 14 Types 11/0/2/1/0/0/0/0/0 Lore% 72 Gallery% 81 Achievement% 63 Wizard Run 0 Options --------- ASCII 0 Keyboard 0 Movement Numpad Keybinds 0 Fullscreen 2 Font 18/TerminusBold Map View 76x50 Tactical HUD 1 Map Filters NONE Filters NONE Steam 1 RUN: 1b478d97-248e-4ba0-8d20-8b55156fefae